bitfinex-derivatives/quotes_ETHF0:USTF0_20250530
["timestamp","ask_amount","ask_price","bid_price","bid_amount"]
[1748616420651,0.00578626,2592.2,2591.7,5.65788626]
[1748616420949,0.77145,2591.8,2591.7,6.42936626]
[1748616421143,0.77145,2591.8,2591.7,5.65788626]
[1748616421450,0.77145,2591.8,2591.7,0.00578626]
[1748616421839,0.77137,2592.1,2591.8,0.77145]
[1748616422050,0.00578626,2592.2,2591.7,0.77723626]
[1748616422251,4.4470736,2592.1,2591.7,0.00578626]
[1748616422548,3.2078,2591.8,2591.7,0.00578626]
[1748616423455,5.26415,2591.8,2591.7,0.00578626]
[1748616423847,6.50353208,2591.8,2591.7,0.00578626]
[1748616424153,5.26415,2591.8,2591.7,0.00578626]
[1748616424947,6.50351309,2591.8,2591.7,0.00578626]
[1748616425248,11.50351309,2591.8,2591.7,0.00578626]
[1748616425448,6.50351309,2591.8,2591.7,0.00578626]
[1748616426053,11.50351309,2591.8,2591.7,0.00578626]
[1748616426849,0.77171,2590.9,2590.8,3.2078]
[1748616427045,0.77166,2591.1,2590.9,0.7717]
[1748616427646,0.77174,2590.8,2590.7,0.6349]
[1748616427950,0.77174,2590.8,2590.7,5.0099]
[1748616428150,0.77173,2590.9,2590.7,5.78167]
[1748616428451,0.77169,2591.0,2590.8,3.8464]
[1748616428651,0.77167,2591.1,2590.9,0.77169]
[1748616428846,0.77166,2591.1,2591.0,0.77166]
[1748616429154,0.7717,2591.0,2590.9,0.77169]
[1748616429355,0.77164,2591.2,2590.9,0.77169]
[1748616429545,0.77164,2591.2,2590.8,3.8464]
[1748616429745,3.2078,2591.3,2590.8,0.6386]
[1748616429942,0.77171,2590.9,2590.8,0.6386]
[1748616430145,0.77171,2590.9,2590.8,5.0086]
[1748616431544,0.77174,2590.8,2590.7,0.6349]
[1748616431748,0.77174,2590.8,2590.7,5.0049]
[1748616431953,0.7717,2591.0,2590.8,0.77173]
[1748616432152,0.7717,2591.0,2590.9,1.2461]
[1748616432957,0.7717,2591.0,2590.9,2.01781]
[1748616433155,0.7717,2591.0,2590.9,1.2461]
[1748616433550,0.6265,2591.2,2590.9,1.2461]
[1748616433753,0.77167,2591.1,2591.0,0.77165]
[1748616433953,1.39814,2591.2,2591.1,0.77165]
[1748616434157,5.13637,2591.9,2591.1,7.5788]
[1748616434454,0.77151,2591.7,2591.4,3.2078]
[1748616434658,0.77144,2591.9,2591.5,4.371]
[1748616434845,3.2078,2591.9,2591.5,5.0189]
[1748616435049,0.7715,2591.6,2591.5,5.79042]
[1748616435260,3.97926,2591.9,2591.8,0.77145]
[1748616435458,3.97925,2591.9,2591.8,0.77145]
[1748616435662,3.2078,2591.9,2591.8,0.77145]
[1748616436264,3.97922,2591.9,2591.8,0.77145]
[1748616436458,0.77142,2592.0,2591.9,0.7714]
[1748616436860,0.77157,2591.5,2591.4,0.77155]
[1748616437156,3.2078,2591.7,2591.2,0.6335]
[1748616437360,0.77136,2592.1,2592.0,0.77139]
[1748616438350,0.00578626,2592.2,2592.1,0.77136]
[1748616439048,0.00578626,2592.2,2592.1,3.97916]
[1748616439247,0.6278,2593.0,2592.5,1.92809]
[1748616439462,0.77118,2592.7,2592.6,4.37]
[1748616439662,3.2078,2592.8,2592.1,3.2078]
[1748616439855,5.13572,2592.8,2592.4,0.77124]
[1748616440056,0.77125,2592.5,2592.4,0.77124]
[1748616440560,0.77125,2592.5,2592.2,4.37]
[1748616440561,0.77129,2592.4,2592.3,0.77128]
[1748616440757,0.00578626,2592.7,2592.2,4.37]
[1748616440954,0.77123,2592.6,2592.5,0.77122]
[1748616442155,0.77698626,2592.7,2592.6,0.77121]
[1748616442563,0.77124,2592.6,2592.5,0.77122]
[1748616443164,0.77698626,2592.7,2592.6,0.77121]
[1748616443757,0.00578626,2592.7,2592.5,0.77121]
[1748616444062,0.00578626,2592.7,2592.6,0.77121]
[1748616444262,0.00578626,2592.7,2592.6,5.14021]
[1748616444464,0.77696626,2592.7,2592.6,5.14021]
[1748616444759,0.77696626,2592.7,2592.6,4.369]
[1748616445267,0.77124,2592.5,2592.4,0.6647]
[1748616445561,0.77124,2592.5,2592.1,5.13619]
[1748616445562,0.00578626,2592.7,2592.3,4.369]
[1748616445763,0.77124,2592.6,2592.5,0.77121]
[1748616446466,0.77697626,2592.7,2592.6,0.77121]
[1748616446659,0.00578626,2592.7,2592.6,0.77121]
[1748616446860,0.77696626,2592.7,2592.6,0.77121]
[1748616448159,0.00578626,2592.7,2592.6,0.77121]
[1748616449668,3.2078,2593.4,2593.2,0.771]
[1748616449866,0.77106,2593.2,2593.1,0.77104]
[1748616450061,0.7711,2593.1,2593.0,0.77106]
[1748616450260,0.77113,2593.0,2592.9,4.369]
[1748616450568,0.77113,2593.0,2592.5,1.2985]
[1748616450569,0.77119,2592.8,2592.7,5.14015]
[1748616451372,1.41434,2592.9,2592.8,0.77115]
[1748616452662,0.77115,2592.8,2592.7,6.38936]
[1748616453270,1.41433,2592.9,2592.8,0.77115]
[1748616453465,0.6432,2592.9,2592.8,0.77115]
[1748616453669,0.00578626,2593.0,2592.9,0.77112]
[1748616454170,0.77687626,2593.0,2592.9,0.77112]
[1748616454973,0.00578626,2593.0,2592.9,0.77112]
[1748616455670,0.7709,2593.7,2593.6,0.77088]
[1748616456170,3.97867,2593.8,2593.7,0.77088]
[1748616456364,3.97867,2593.8,2593.5,1.2643]
[1748616456365,0.77091,2593.7,2593.6,0.77089]
[1748616456864,0.77087,2593.8,2593.7,0.77086]
[1748616457669,0.00578626,2593.9,2593.8,0.77085]
[1748616458361,0.00578626,2593.9,2593.8,2.11485]
[1748616459374,0.00578626,2593.9,2593.8,2.74435]
[1748616459771,1.43736,2594.5,2594.1,1.92691]
[1748616459960,0.6276,2594.7,2594.6,0.77061]
[1748616460669,3.2078,2594.8,2594.7,0.77058]
[1748616460869,3.97835,2594.8,2594.7,0.77058]
[1748616462073,3.2078,2594.8,2594.7,0.77058]
[1748616462670,3.2078,2594.8,2594.7,2.02898]
[1748616462971,3.97835,2594.8,2594.7,2.02898]
[1748616463172,3.2078,2594.8,2594.7,2.02898]
[1748616463372,0.00382452,2594.9,2594.8,0.77055]
[1748616466371,0.00382452,2594.9,2594.4,5.13445]
[1748616466372,0.77064,2594.5,2594.4,4.362]
[1748616466673,0.77064,2594.5,2594.4,5.13267]
[1748616466876,1.38953,2594.6,2594.5,0.77064]
[1748616467079,0.6189,2594.6,2594.5,0.77064]
[1748616467478,1.38951,2594.6,2594.5,2.04264]
[1748616467681,0.6189,2594.6,2594.5,2.04264]
[1748616468373,1.39647,2594.8,2594.5,2.04264]
[1748616468672,0.00382452,2594.9,2594.8,0.77055]
[1748616468873,0.00382452,2594.9,2594.8,5.13255]
[1748616469480,0.00382452,2594.9,2594.8,6.45565]
[1748616471076,0.77434452,2594.9,2594.8,6.45565]
[1748616471978,0.00382452,2594.9,2594.8,6.45565]
[1748616472476,0.77434452,2594.9,2594.8,6.45565]
[1748616473383,0.00382452,2594.9,2594.8,6.45565]
[1748616473578,0.77434452,2594.9,2594.8,6.45565]
[1748616473877,0.00382452,2594.9,2594.8,6.45565]
[1748616477182,0.77434452,2594.9,2594.8,5.6841]
[1748616477484,0.77434452,2594.9,2594.8,6.45465]
[1748616477673,0.00382452,2594.9,2594.8,6.45465]
[1748616478678,0.77434452,2594.9,2594.8,5.6841]
[1748616479089,0.77434452,2594.9,2594.8,6.45465]
[1748616479382,0.00382452,2594.9,2594.8,6.45465]
[1748616479983,0.00382452,2594.9,2594.4,3.85335]
[1748616479984,0.77083,2593.9,2593.8,0.77083]
[1748616480173,0.77091,2593.6,2593.5,6.3524]
[1748616480378,3.9787,2593.7,2593.1,4.361]
[1748616480577,3.9787,2593.7,2593.6,0.77091]
[1748616480578,3.8495,2593.7,2593.6,0.77091]
[1748616480779,3.2078,2593.7,2593.6,0.77091]
[1748616481082,0.6417,2594.2,2593.9,0.7708]
[1748616481274,0.6417,2594.2,2594.0,1.3091]
[1748616481982,0.77079,2594.0,2593.7,0.6627]
[1748616482181,3.2078,2594.0,2593.7,5.0237]
[1748616482477,3.2078,2594.0,2593.8,1.3091]
[1748616482683,0.6417,2594.2,2593.8,1.3091]
[1748616482883,0.6417,2594.2,2594.0,0.77078]
[1748616483093,0.6417,2594.2,2594.1,1.3091]
[1748616483788,1.41243,2594.2,2594.1,1.3091]
[1748616484084,0.6417,2594.2,2593.7,5.0237]
[1748616484384,0.6417,2594.2,2593.8,5.695]
[1748616484385,1.8869,2594.1,2593.8,5.695]
[1748616484584,2.65768,2594.1,2593.8,6.46584]
[1748616484974,0.6256,2594.1,2593.9,0.77082]
[1748616485181,1.39637,2594.1,2593.8,1.333]
[1748616485383,1.41243,2594.2,2594.0,0.77078]
[1748616485582,1.41243,2594.2,2593.9,4.362]
[1748616485879,0.6417,2594.2,2594.1,0.77076]
[1748616486091,0.77066,2594.5,2594.0,3.25998]
[1748616486280,4.4691,2594.7,2594.0,3.25998]
[1748616486281,6.39562,2594.7,2594.0,1.333]
[1748616486488,0.77071,2594.3,2594.1,0.77075]
[1748616486979,5.13452,2594.4,2593.7,0.6627]
[1748616487284,0.77081,2594.0,2593.8,6.41395]
[1748616487487,0.77082,2593.9,2593.8,5.6431]
[1748616488190,0.77082,2593.9,2593.8,4.362]
[1748616489084,0.77081,2594.0,2593.8,5.13285]
[1748616489284,1.3171,2594.1,2593.8,4.362]
[1748616489485,3.2078,2594.8,2594.0,5.13479]
[1748616489681,3.852,2594.8,2594.1,1.2685]
[1748616489880,0.77067,2594.5,2594.3,0.7707]
[1748616490085,1.9812,2594.7,2594.3,2.0518]
[1748616490283,3.2078,2594.5,2594.4,0.77067]
[1748616490486,1.43469,2594.7,2594.3,1.2811]
[1748616490682,0.6641,2594.7,2594.3,1.2811]
[1748616490882,0.77067,2594.5,2594.3,2.05179]
[1748616491287,1.3388,2594.6,2594.3,1.2811]
[1748616491488,1.3388,2594.6,2594.5,0.77064]
[1748616491683,1.43469,2594.7,2594.5,0.77064]
[1748616491880,0.6641,2594.7,2594.3,1.2811]
[1748616492081,3.2078,2594.5,2594.3,1.2811]
[1748616492290,3.2078,2594.5,2594.4,0.77067]
[1748616493384,3.2078,2594.8,2594.7,0.77058]
[1748616493589,0.00382452,2594.9,2594.8,0.77055]
[1748616493783,0.77434452,2594.9,2594.8,1.334]
[1748616493988,0.00382452,2594.9,2594.8,1.334]
[1748616494385,0.77059,2594.7,2594.5,0.77063]
[1748616494686,0.63322452,2594.9,2594.8,0.77055]
[1748616494884,0.00382452,2594.9,2594.8,0.57785]
[1748616495289,0.00382452,2594.9,2594.8,1.21125]
[1748616495684,0.77434452,2594.9,2594.8,0.6334]
[1748616495885,0.00382452,2594.9,2594.8,1.40396]
[1748616496092,0.00382452,2594.9,2594.8,2.73796]
[1748616496288,0.00382452,2594.9,2594.8,1.9674]
[1748616497092,0.77435452,2594.9,2594.8,1.9674]
[1748616497385,0.00382452,2594.9,2594.8,1.334]
[1748616497590,0.00382452,2594.9,2594.8,2.10456]
[1748616497895,0.77435452,2594.9,2594.8,1.334]
[1748616498090,0.77061,2594.6,2594.5,7.5638]
[1748616498291,0.77059,2594.7,2594.5,5.12662]
[1748616498489,0.6193,2594.6,2594.5,5.12662]
[1748616498787,0.6193,2594.6,2594.5,5.12664]
[1748616501690,0.6193,2594.6,2594.3,1.3261]
[1748616501995,0.6193,2594.6,2594.5,0.77064]
[1748616502297,0.6193,2594.6,2594.3,5.6811]
[1748616502593,3.2078,2594.4,2594.1,4.355]
[1748616502801,3.2078,2594.4,2594.3,0.7707]
[1748616503388,0.77082,2593.9,2593.8,43.212]
[1748616503792,3.2078,2594.1,2593.8,43.212]
[1748616504187,3.97858,2594.1,2593.9,0.77082]
[1748616504387,3.2078,2594.1,2594.0,0.77079]
[1748616505992,3.2078,2594.4,2593.9,1.2229]
[1748616506199,3.2078,2594.7,2594.4,1.92669]
[1748616506495,3.97839,2594.7,2594.5,1.2284]
[1748616506684,3.2078,2594.6,2594.5,1.99902]
[1748616507085,0.7706,2594.7,2594.3,4.355]
[1748616507387,0.77061,2594.7,2594.4,0.77067]
[1748616507591,2.03333,2594.6,2594.4,0.77067]
[1748616507887,1.2627,2594.6,2594.3,4.355]
[1748616508092,0.77062,2594.6,2594.4,1.99907]
[1748616508293,0.77059,2594.7,2594.4,1.99907]
[1748616508597,0.77062,2594.6,2594.4,1.99907]
[1748616509099,2.71027,2594.8,2594.6,0.77061]
[1748616509398,2.71027,2594.8,2594.4,1.2284]
[1748616509399,0.77062,2594.6,2594.4,1.99906]
[1748616509587,1.9397,2594.8,2594.4,1.2284]
[1748616509787,0.77064,2594.6,2594.4,1.2284]
[1748616509991,0.77064,2594.6,2594.4,1.99907]
[1748616510191,0.77065,2594.5,2594.4,1.99907]
[1748616510391,1.43108,2594.8,2594.4,1.2284]
[1748616510588,0.6605,2594.8,2594.6,0.7706]
[1748616510791,1.43108,2594.8,2594.7,1.272]
[1748616510996,0.77062,2594.6,2594.5,0.6495]
[1748616511193,0.77065,2594.5,2594.4,2.04267]
[1748616511496,0.77062,2594.6,2594.5,0.77063]
[1748616511693,0.77062,2594.6,2594.4,2.04266]
[1748616512201,0.77065,2594.5,2594.4,1.272]
[1748616512395,5.13439,2594.6,2594.2,0.6495]
[1748616512600,0.77069,2594.4,2594.3,0.7707]
[1748616512796,2.65046,2594.5,2594.3,0.77068]
[1748616513000,0.6459,2594.5,2594.4,0.77067]
[1748616513298,0.6459,2594.5,2594.3,1.295]
[1748616513299,3.97842,2594.6,2594.5,0.77065]
[1748616513499,3.2078,2594.6,2594.3,1.295]
[1748616513695,8.2078,2594.6,2593.7,3.2078]
[1748616513891,0.77088,2593.7,2593.6,1.295]
[1748616514096,0.77094,2593.5,2593.4,0.00578626]
[1748616516800,5.0,2593.5,2592.5,43.209]
[1748616517001,0.77118,2592.8,2592.7,1.2516]
[1748616517300,5.13563,2592.9,2592.3,4.9732]
[1748616517493,0.77126,2592.5,2592.3,4.9732]
[1748616517698,3.97902,2592.6,2592.3,5.7445]
[1748616518000,3.2078,2592.6,2592.4,1.3096]
[1748616518495,0.77124,2592.5,2592.4,1.3096]
[1748616518695,3.97904,2592.6,2592.4,1.3096]
[1748616518895,0.77124,2592.5,2592.4,1.3096]
[1748616519494,0.77133,2592.2,2592.1,0.00578626]
[1748616520005,3.2078,2592.3,2592.1,0.00578626]
[1748616520299,0.77133,2592.2,2592.1,1.31538626]
[1748616520504,0.77133,2592.2,2592.1,0.00578626]
[1748616520896,1.92841,2592.1,2591.1,5.6442]
[1748616521100,3.2078,2591.4,2591.1,7.06885]
[1748616521307,3.2078,2591.4,2591.2,2.06442]
[1748616521507,3.2078,2591.4,2591.3,1.2928]
[1748616521710,3.97937,2591.4,2591.3,1.2928]
[1748616521902,3.2078,2591.4,2591.3,1.2928]
[1748616523002,3.5206603,2591.7,2591.4,0.77154]
[1748616523198,3.2078,2591.7,2591.3,1.2928]
[1748616523405,0.77163,2591.2,2591.1,0.00578626]
[1748616523909,3.97938,2591.4,2591.1,0.00578626]
[1748616524111,0.77163,2591.2,2591.1,0.00578626]
[1748616524412,3.2078,2591.4,2591.1,0.00578626]
[1748616524603,2.08303,2591.3,2591.1,0.00578626]
[1748616524907,3.97937,2591.4,2591.1,0.00578626]
[1748616525108,3.2078,2591.4,2591.1,0.00578626]
[1748616525605,1.3114,2591.8,2591.1,0.00578626]
[1748616525606,3.2078,2591.8,2591.1,4.35678626]
[1748616525810,3.97926,2591.8,2591.3,0.7716]
[1748616526015,3.97926,2591.8,2591.4,2.07795]
[1748616526309,3.2078,2591.8,2591.7,0.77148]
[1748616526907,3.2078,2592.3,2592.2,0.77133]
[1748616527110,5.86742,2592.6,2592.2,0.77133]
[1748616527413,4.64107,2592.5,2592.3,1.3155]
[1748616527602,0.77127,2592.4,2592.3,1.3155]
[1748616528115,5.90975,2592.5,2592.3,1.3155]
[1748616528517,3.2078,2592.5,2592.3,1.3155]
[1748616528722,3.2078,2592.5,2592.3,2.08678]
[1748616529008,3.2078,2592.5,2592.3,1.3155]
[1748616529413,0.77127,2592.4,2592.3,1.3155]
[1748616530114,3.97906,2592.5,2592.3,1.3155]
[1748616530417,0.77127,2592.4,2592.3,1.3155]
[1748616530608,0.77133,2592.3,2592.0,1.99919]
[1748616530808,1.62545293,2592.6,2592.0,1.99919]
[1748616530809,3.97914,2592.2,2592.0,1.2278]
[1748616531009,0.77136,2592.1,2592.0,1.2278]
[1748616531608,3.97916,2592.2,2592.0,1.2278]
[1748616532013,0.77136,2592.1,2592.0,1.2278]
[1748616539015,0.77151,2591.6,2591.5,0.6662]
[1748616539217,0.77154,2591.5,2591.4,1.2411]
[1748616539426,1.92878,2591.6,2591.1,0.67228626]
[1748616539623,3.2078,2591.3,2591.1,1.91338626]
[1748616539823,3.9794,2591.3,2591.2,1.2411]
[1748616540415,3.2078,2591.3,2591.2,2.01273]
[1748616540618,3.2078,2591.3,2591.2,1.2411]
[1748616540820,3.9794,2591.3,2591.2,1.2411]
[1748616541122,3.2078,2591.6,2591.5,0.77152]
[1748616541311,3.2078,2591.6,2591.2,1.2411]
[1748616541715,0.77151,2591.6,2591.2,1.2411]
[1748616542217,0.77151,2591.6,2591.4,0.77154]
[1748616542415,3.97931,2591.6,2591.5,1.3065]
[1748616542616,3.97931,2591.6,2591.1,0.67228626]
[1748616542617,5.13665,2591.6,2591.1,5.79694626]
[1748616542918,0.77161,2591.3,2591.2,1.3065]
[1748616543317,3.97941,2591.3,2591.2,1.3065]
[1748616544018,0.77163,2591.2,2591.1,0.00578626]
[1748616544217,3.35913,2591.2,2591.1,0.00578626]
[1748616544420,1.92944,2590.8,2590.2,43.912]
[1748616544617,0.77187,2590.4,2590.3,2.07838]
[1748616544920,3.2078,2590.5,2590.1,1.3408]
[1748616545117,3.2078,2590.5,2590.1,2.11274]
[1748616545311,0.77187,2590.4,2590.2,0.77192]
[1748616545516,0.7719,2590.3,2590.2,2.11272]
[1748616545718,3.2078,2590.5,2590.3,0.7719]
[1748616545917,3.2078,2590.5,2590.3,2.1127]
[1748616545918,3.97966,2590.5,2590.3,2.1127]
[1748616546120,3.2078,2590.5,2590.3,2.11268]
[1748616546418,3.97966,2590.5,2590.4,0.77187]
[1748616546621,3.97966,2590.5,2590.4,2.11267]
[1748616546921,3.97966,2590.5,2590.4,1.3408]
[1748616547312,3.97966,2590.5,2590.4,2.11267]
[1748616547713,0.00578626,2590.6,2590.5,0.77184]
[1748616547919,0.00578626,2590.6,2590.5,2.62254]
[1748616548420,1.3115,2591.2,2591.1,0.77166]
[1748616548421,3.2078,2591.2,2591.1,0.77166]
[1748616549630,0.00578626,2591.4,2591.3,0.7716]
[1748616550322,0.00578626,2591.4,2591.3,1.9999]
[1748616550523,0.77735626,2591.4,2591.3,1.9999]
[1748616551521,0.00578626,2591.4,2591.3,1.9999]
[1748616552623,0.77736626,2591.4,2591.3,1.9999]
[1748616552824,0.77736626,2591.4,2591.3,1.2283]
[1748616553024,0.19868626,2591.4,2591.3,1.99991]
[1748616553329,0.19868626,2591.4,2591.3,6.99991]
[1748616553523,3.822,2592.4,2591.3,10.08622]
[1748616553727,2.03169316,2592.3,2592.2,0.77132]
[1748616554018,3.822,2592.4,2592.0,4.347]
[1748616554221,0.77137,2592.1,2592.0,1.2639]
[1748616554816,0.77143,2591.9,2591.8,4.97728626]
[1748616555018,0.77143,2591.9,2591.8,5.74874626]
[1748616555225,0.77142,2592.0,2591.8,4.97728626]
[1748616555418,0.77143,2591.9,2591.8,4.97728626]
[1748616556830,3.2078,2592.1,2591.8,5.74872626]
[1748616557129,0.7714,2592.0,2591.9,1.297]
[1748616557827,0.7714,2592.0,2591.9,2.06843]
[1748616558028,3.2078,2592.1,2592.0,0.7714]
[1748616558424,0.7714,2592.0,2591.9,2.0684]
[1748616558620,0.7714,2592.0,2591.9,1.297]
[1748616559428,0.7714,2592.0,2591.9,2.06843]
[1748616559629,3.97919,2592.1,2592.0,0.7714]
[1748616559928,3.97919,2592.1,2592.0,2.0684]
[1748616560125,3.97919,2592.1,2592.0,1.297]
[1748616560631,3.97919,2592.1,2592.0,2.0684]
[1748616561426,3.2078,2592.1,2592.0,2.0684]
[1748616561732,0.77136,2592.2,2592.0,2.0684]
[1748616561733,0.00578626,2592.3,2592.2,0.77134]
[1748616563129,0.77709626,2592.3,2592.2,0.77134]
[1748616563831,0.00578626,2592.3,2592.2,0.77134]
[1748616564632,0.77709626,2592.3,2592.2,0.77134]
[1748616564828,0.00578626,2592.3,2592.2,0.77134]
[1748616565434,0.00578626,2592.3,2592.2,5.11734]
[1748616565930,0.77709626,2592.3,2592.2,4.346]
[1748616566134,0.77709626,2592.3,2592.2,6.39234]
[1748616566527,0.77709626,2592.3,2592.2,1.275]
[1748616566731,0.77134,2592.2,2592.1,4.346]
[1748616567434,0.77134,2592.2,2592.1,5.621]
[1748616567634,0.77137,2592.1,2592.0,0.77138]
[1748616567943,1.39152626,2592.3,2592.2,0.77134]
[1748616568132,0.77136,2592.2,2592.1,0.77134]
[1748616568835,0.62018626,2592.3,2592.2,0.77134]
[1748616568836,0.00578626,2592.3,2592.2,0.77134]
[1748616569338,0.77709626,2592.3,2592.2,0.77134]
[1748616569531,0.00578626,2592.3,2592.2,2.04244]
[1748616569934,0.77709626,2592.3,2592.2,2.04244]
[1748616570742,0.77143,2591.9,2591.8,0.63028626]
[1748616571048,0.77143,2591.9,2591.8,0.00578626]
[1748616571049,3.97923,2591.9,2591.8,0.00578626]
[1748616572147,3.97923,2591.9,2591.8,0.77724626]
[1748616572656,3.21358626,2592.3,2591.8,0.00578626]
[1748616572949,0.77139,2592.1,2592.0,0.77136]
[1748616573250,0.00578626,2592.3,2592.2,0.77134]
[1748616573439,0.00578626,2592.3,2592.2,5.11734]
[1748616574142,3.2078,2592.6,2592.5,0.77125]
[1748616574544,0.77122,2592.6,2592.5,0.77125]
[1748616574849,0.77137,2592.1,2592.0,0.77139]
[1748616575048,0.77137,2592.1,2592.0,5.11739]
[1748616575443,0.77136,2592.2,2592.1,0.77135]
[1748616575648,0.77136,2592.2,2592.1,2.03995]
[1748616576146,0.00382452,2592.3,2592.2,0.77134]
[1748616577248,0.77513452,2592.3,2592.2,0.77134]
[1748616578449,3.98293452,2592.3,2592.2,0.77134]
[1748616578945,0.77513452,2592.3,2592.2,0.77134]
[1748616579143,0.00382452,2592.3,2592.2,0.77134]
[1748616580445,0.00382452,2592.3,2592.2,5.77134]
[1748616580845,0.00382452,2592.3,2592.2,5.10834]
[1748616581049,0.77513452,2592.3,2592.2,5.10834]
[1748616581948,0.00382452,2592.3,2592.2,5.10834]
[1748616582451,0.77513452,2592.3,2592.2,5.10834]
[1748616583354,0.77143,2591.9,2591.8,5.73362626]
[1748616583545,5.13993452,2592.3,2591.9,0.77138]
[1748616583546,0.77142,2592.0,2591.9,0.77138]
[1748616583951,0.77142,2592.0,2591.9,2.10288]
[1748616584454,3.21162452,2592.3,2591.9,1.3315]
[1748616584645,0.77139,2592.1,2592.0,0.77136]
[1748616584849,0.7714,2592.1,2592.0,0.77137]
[1748616585749,0.7714,2592.1,2591.9,1.3315]
[1748616585750,0.7714,2592.0,2591.9,1.3315]
[1748616585947,1.92838,2592.2,2591.8,5.73362626]
[1748616585948,0.77143,2591.9,2591.8,0.00578626]
[1748616586151,3.97923,2591.9,2591.8,0.00578626]
[1748616587843,0.77164,2591.3,2591.1,1.2981]
[1748616588047,0.77164,2591.3,2591.2,0.77163]
[1748616588247,0.77164,2591.2,2591.1,6.40675]
[1748616588646,0.6456,2591.4,2591.1,5.6351]
[1748616588852,0.77163,2591.3,2591.2,0.77162]
[1748616589252,0.77164,2591.2,2591.1,2.06977]
[1748616589647,1.41719,2591.4,2591.3,0.77161]
[1748616590053,1.3316,2591.7,2591.6,0.77152]
[1748616590256,3.8482,2591.8,2591.0,7.55058626]
[1748616590257,3.97918,2592.1,2591.7,0.77149]
[1748616590452,0.77142,2592.0,2591.8,1.2981]
[1748616590657,0.77142,2592.0,2591.9,0.77143]
[1748616591054,3.2078,2592.1,2592.0,0.7714]
[1748616591255,3.97917,2592.1,2592.0,0.7714]
[1748616591454,3.2078,2592.1,2592.0,0.7714]
[1748616592754,0.77515452,2592.3,2592.2,0.77134]
[1748616594164,0.77137,2592.1,2592.0,1.296]
[1748616594459,0.77143,2591.9,2591.8,4.337]
[1748616594662,0.77146,2591.8,2591.7,1.2201]
[1748616594957,0.77146,2591.8,2591.7,5.5571]
[1748616595157,0.77146,2591.8,2591.7,6.32856]
[1748616595362,0.77145,2591.9,2591.8,0.77143]
[1748616596255,0.77145,2591.9,2591.8,1.99153]
[1748616597155,0.77152,2591.7,2591.6,0.7715]
[1748616597559,0.77152,2591.7,2591.6,1.9996]
[1748616597961,0.77149,2591.7,2591.6,1.9996]
[1748616599864,0.77149,2591.7,2591.6,1.2281]
[1748616600064,0.77152,2591.6,2591.5,4.337]
[1748616600265,0.77152,2591.6,2591.5,1.2754]
[1748616600559,0.7715,2591.7,2591.6,0.77149]
[1748616600954,0.6124,2591.8,2591.7,0.77149]
[1748616601155,3.97925,2591.9,2591.8,0.77146]
[1748616601360,3.97923,2591.9,2591.8,0.77146]
[1748616601556,3.2078,2591.9,2591.5,5.6124]
[1748616601763,0.77152,2591.7,2591.6,0.77148]
[1748616602065,3.2078,2591.9,2591.5,7.54124]
[1748616602264,3.97924,2591.9,2591.8,0.77146]
[1748616602464,3.97924,2591.9,2591.5,6.38392]
[1748616602465,0.77152,2591.6,2591.5,6.38392]
[1748616604765,3.2078,2591.9,2591.5,7.54127]
[1748616604961,3.97926,2591.9,2591.8,0.77146]
[1748616605266,3.2078,2591.9,2591.8,0.77146]
[1748616605456,3.97923,2591.9,2591.8,0.77146]
[1748616606065,3.97923,2591.9,2591.8,2.00036]
[1748616607869,0.77146,2591.8,2591.7,0.673]
[1748616608071,0.77161,2591.3,2591.2,6.1946]
[1748616608361,5.2016,2591.7,2591.5,0.77152]
[1748616608561,3.9792,2592.1,2591.4,7.0657]
[1748616608773,3.2078,2592.1,2592.0,0.7714]
[1748616608958,0.7714,2592.0,2591.9,5.1084]
[1748616609667,0.7714,2592.0,2591.9,4.337]
[1748616609862,0.7714,2592.0,2591.9,5.10843]
[1748616610366,5.13625,2592.1,2591.7,0.6287]
[1748616610564,0.7714,2592.0,2591.9,4.327]
[1748616610763,0.77146,2591.8,2591.7,4.9557]
[1748616610958,0.77146,2591.8,2591.7,5.72719]
[1748616611261,0.77146,2591.8,2591.7,4.327]
[1748616611568,0.77146,2591.8,2591.7,5.09849]
[1748616611762,0.77146,2591.8,2591.5,4.327]
[1748616611763,5.13645,2591.8,2591.5,4.327]
[1748616611962,0.77152,2591.6,2591.5,4.327]
[1748616612257,0.77158,2591.4,2591.3,4.9498]
[1748616612459,0.77158,2591.4,2591.3,5.72141]
[1748616613065,0.77167,2591.1,2591.0,0.00578626]
[1748616613568,0.77167,2591.1,2591.0,0.77747626]
[1748616614370,4.64118,2591.5,2591.4,0.77158]
[1748616614570,0.77162,2591.4,2591.3,0.77159]
[1748616614766,0.77166,2591.1,2591.0,0.00578626]
[1748616615064,0.77166,2591.1,2591.0,0.77747626]
[1748616615273,0.77166,2591.1,2591.0,0.00578626]
[1748616615772,0.77187,2590.4,2590.3,4.9761]
[1748616616062,0.77196,2590.1,2590.0,1.42326]
[1748616616270,0.77193,2590.3,2590.2,0.77191]
[1748616616472,0.77196,2590.2,2590.1,0.77195]
[1748616616862,0.77192,2590.3,2590.2,0.77192]
[1748616617261,0.77766626,2590.4,2590.3,0.7719]
[1748616618062,0.00578626,2590.4,2590.3,0.7719]
[1748616618269,3.2078,2591.1,2590.9,0.7717]
[1748616618471,3.2078,2591.1,2590.4,1.92962]
[1748616618662,5.13724,2590.8,2590.2,4.327]
[1748616618863,0.77186,2590.5,2590.4,0.77184]
[1748616619065,0.77189,2590.4,2590.3,0.77188]
[1748616620077,0.7719,2590.3,2590.2,5.09891]
[1748616620775,0.77193,2590.2,2590.1,1.40945]